{"text_format":"1","workbook":"xlsx","n_sheets":1,"sheets":["Tabelle1"],"not_rendered":{"charts":0,"images":1,"macros":0,"external_links":0,"defined_names":1,"comments":0,"pivot_tables":0},"unopened":[],"bounds":{"document_bytes":16777216,"sheet_cells":100000,"rows_first":2000,"rows_last":500,"rows_between":2000,"halvings":0,"cell_chars":16384,"cell_head_chars":4096},"cells_cut":0,"cells_raw":0,"read":"whole","date_system":"1900"}

{"sheet":"Tabelle1","index":0,"n_rows":115,"n_cols":15,"rows_kept":115,"cut":false,"hidden":false,"merged":[[110,10,114,12],[110,8,113,9],[1,7,1,9],[2,7,2,9],[1,12,2,12]]}
[{"$f":"IF(H2=0,\"Bitte Teamname in das umrandete Feld eintragen:\",\"\")","v":"Bitte Teamname in das umrandete Feld eintragen:"}]
[null,null,null,null,null,"Anmeldung Vereine + Teams",null,null,null,null,null,null,"Startgeld:\nVoranmeldung: 5,00 € / am Start 6,00 €\nStarter unter 18 Jahre frei"]
[null,null,null,null,null,"2025-05-18",null,"Teamname"]
[]
[null,null,"Teilnehmer",null,null,"Geburts-",null,null,null,null,null,"Wertbons",null,"Startgeld"]
[null,"Lfd.Nr.","Name","Vorname","Geschlecht","datum","Straße Nr","Plz","Ort","e-mail",null,"in","Teamname"]
[null,null,"Mustermann","Max","m / w","1996-04-03","Teststr. 11",99999,"Musterstadt","freiwillig",null,"Euro","Musterteam"]
[]
[{"$f":"IF(C9=\"\",0,1)","v":0},1,null,null,null,null,null,null,null,null,{"$f":"IF(A9=1,\"18.05.2025\")","v":false},null,{"$f":"IF(ISTEXT(C9)<>FALSE,$H$2,\"\")","v":""},{"$f":"IF(A9=1,IF(O9>18,5,0),\"\")","v":""},{"$f":"YEARFRAC(F9,K9)","v":{"$error":"#VALUE!"}}]
[{"$f":"IF(C10=\"\",0,1)","v":0},2,null,null,null,null,null,null,null,null,{"$f":"IF(A10=1,\"18.05.2025\")","v":false},null,"",{"$f":"IF(A10=1,IF(O10>18,5,0),\"\")","v":""},{"$f":"YEARFRAC(F10,K10)","v":{"$error":"#VALUE!"}}]
[0,3,null,null,null,null,null,null,null,null,false,null,"","",{"$error":"#VALUE!"}]
[0,4,null,null,null,null,null,null,null,null,false,null,"","",{"$error":"#VALUE!"}]
[0,5,null,null,null,null,null,null,null,null,false,null,"","",{"$error":"#VALUE!"}]
[0,6,null,null,null,null,null,null,null,null,false,null,"","",{"$error":"#VALUE!"}]
[0,7,null,null,null,null,null,null,null,null,false,null,"","",{"$error":"#VALUE!"}]
[0,8,null,null,null,null,null,null,null,null,false,null,"","",{"$error":"#VALUE!"}]
[0,9,null,null,null,null,null,null,null,null,false,null,"","",{"$error":"#VALUE!"}]
[0,10,null,null,null,null,null,null,null,null,false,null,"","",{"$error":"#VALUE!"}]
[0,11,null,null,null,null,null,null,null,null,false,null,"","",{"$error":"#VALUE!"}]
[0,12,null,null,null,null,null,null,null,null,false,null,"","",{"$error":"#VALUE!"}]
[0,13,null,null,null,null,null,null,null,null,false,null,"","",{"$error":"#VALUE!"}]
[0,14,null,null,null,null,null,null,null,null,false,null,"","",{"$error":"#VALUE!"}]
[0,15,null,null,null,null,null,null,null,null,false,null,"","",{"$error":"#VALUE!"}]
[0,16,null,null,null,null,null,null,null,null,false,null,"","",{"$error":"#VALUE!"}]
[0,17,null,null,null,null,null,null,null,null,false,null,"","",{"$error":"#VALUE!"}]
[0,18,null,null,null,null,null,null,null,null,false,null,"","",{"$error":"#VALUE!"}]
[0,19,null,null,null,null,null,null,null,null,false,null,"","",{"$error":"#VALUE!"}]
[0,20,null,null,null,null,null,null,null,null,false,null,"","",{"$error":"#VALUE!"}]
[0,21,null,null,null,null,null,null,null,null,false,null,"","",{"$error":"#VALUE!"}]
[0,22,null,null,null,null,null,null,null,null,false,null,"","",{"$error":"#VALUE!"}]
[0,23,null,null,null,null,null,null,null,null,false,null,"","",{"$error":"#VALUE!"}]
[0,24,null,null,null,null,null,null,null,null,false,null,"","",{"$error":"#VALUE!"}]
[0,25,null,null,null,null,null,null,null,null,false,null,"","",{"$error":"#VALUE!"}]
[0,26,null,null,null,null,null,null,null,null,false,null,"","",{"$error":"#VALUE!"}]
[0,27,null,null,null,null,null,null,null,null,false,null,"","",{"$error":"#VALUE!"}]
[0,28,null,null,null,null,null,null,null,null,false,null,"","",{"$error":"#VALUE!"}]
[0,29,null,null,null,null,null,null,null,null,false,null,"","",{"$error":"#VALUE!"}]
[0,30,null,null,null,null,null,null,null,null,false,null,"","",{"$error":"#VALUE!"}]
[0,31,null,null,null,null,null,null,null,null,false,null,"","",{"$error":"#VALUE!"}]
[0,32,null,null,null,null,null,null,null,null,false,null,"","",{"$error":"#VALUE!"}]
[0,33,null,null,null,null,null,null,null,null,false,null,{"$f":"IF(ISTEXT(C41)<>FALSE,$H$2,\"\")","v":""},"",{"$error":"#VALUE!"}]
[0,34,null,null,null,null,null,null,null,null,false,null,"","",{"$error":"#VALUE!"}]
[0,35,null,null,null,null,null,null,null,null,false,null,"","",{"$error":"#VALUE!"}]
[0,36,null,null,null,null,null,null,null,null,false,null,"","",{"$error":"#VALUE!"}]
[0,37,null,null,null,null,null,null,null,null,false,null,"","",{"$error":"#VALUE!"}]
[0,38,null,null,null,null,null,null,null,null,false,null,"","",{"$error":"#VALUE!"}]
[0,39,null,null,null,null,null,null,null,null,false,null,"","",{"$error":"#VALUE!"}]
[0,40,null,null,null,null,null,null,null,null,false,null,"","",{"$error":"#VALUE!"}]
[0,41,null,null,null,null,null,null,null,null,false,null,"","",{"$error":"#VALUE!"}]
[0,42,null,null,null,null,null,null,null,null,false,null,"","",{"$error":"#VALUE!"}]
[0,43,null,null,null,null,null,null,null,null,false,null,"","",{"$error":"#VALUE!"}]
[0,44,null,null,null,null,null,null,null,null,false,null,"","",{"$error":"#VALUE!"}]
[0,45,null,null,null,null,null,null,null,null,false,null,"","",{"$error":"#VALUE!"}]
[0,46,null,null,null,null,null,null,null,null,false,null,"","",{"$error":"#VALUE!"}]
[0,47,null,null,null,null,null,null,null,null,false,null,"","",{"$error":"#VALUE!"}]
[0,48,null,null,null,null,null,null,null,null,false,null,"","",{"$error":"#VALUE!"}]
[0,49,null,null,null,null,null,null,null,null,false,null,"","",{"$error":"#VALUE!"}]
[0,50,null,null,null,null,null,null,null,null,false,null,"","",{"$error":"#VALUE!"}]
[0,51,null,null,null,null,null,null,null,null,false,null,"","",{"$error":"#VALUE!"}]
[0,52,null,null,null,null,null,null,null,null,false,null,"","",{"$error":"#VALUE!"}]
[0,53,null,null,null,null,null,null,null,null,false,null,"","",{"$error":"#VALUE!"}]
[0,54,null,null,null,null,null,null,null,null,false,null,"","",{"$error":"#VALUE!"}]
[0,55,null,null,null,null,null,null,null,null,false,null,"","",{"$error":"#VALUE!"}]
[0,56,null,null,null,null,null,null,null,null,false,null,"","",{"$error":"#VALUE!"}]
[0,57,null,null,null,null,null,null,null,null,false,null,"","",{"$error":"#VALUE!"}]
[0,58,null,null,null,null,null,null,null,null,false,null,"","",{"$error":"#VALUE!"}]
[0,59,null,null,null,null,null,null,null,null,false,null,"","",{"$error":"#VALUE!"}]
[0,60,null,null,null,null,null,null,null,null,false,null,"","",{"$error":"#VALUE!"}]
[0,61,null,null,null,null,null,null,null,null,false,null,"","",{"$error":"#VALUE!"}]
[0,62,null,null,null,null,null,null,null,null,false,null,"","",{"$error":"#VALUE!"}]
[0,63,null,null,null,null,null,null,null,null,false,null,"","",{"$error":"#VALUE!"}]
[0,64,null,null,null,null,null,null,null,null,false,null,"","",{"$error":"#VALUE!"}]
[0,65,null,null,null,null,null,null,null,null,false,null,{"$f":"IF(ISTEXT(C73)<>FALSE,$H$2,\"\")","v":""},"",{"$error":"#VALUE!"}]
[{"$f":"IF(C74=\"\",0,1)","v":0},66,null,null,null,null,null,null,null,null,{"$f":"IF(A74=1,\"18.05.2025\")","v":false},null,"",{"$f":"IF(A74=1,IF(O74>18,5,0),\"\")","v":""},{"$f":"YEARFRAC(F74,K74)","v":{"$error":"#VALUE!"}}]
[0,67,null,null,null,null,null,null,null,null,false,null,"","",{"$error":"#VALUE!"}]
[0,68,null,null,null,null,null,null,null,null,false,null,"","",{"$error":"#VALUE!"}]
[0,69,null,null,null,null,null,null,null,null,false,null,"","",{"$error":"#VALUE!"}]
[0,70,null,null,null,null,null,null,null,null,false,null,"","",{"$error":"#VALUE!"}]
[0,71,null,null,null,null,null,null,null,null,false,null,"","",{"$error":"#VALUE!"}]
[0,72,null,null,null,null,null,null,null,null,false,null,"","",{"$error":"#VALUE!"}]
[0,73,null,null,null,null,null,null,null,null,false,null,"","",{"$error":"#VALUE!"}]
[0,74,null,null,null,null,null,null,null,null,false,null,"","",{"$error":"#VALUE!"}]
[0,75,null,null,null,null,null,null,null,null,false,null,"","",{"$error":"#VALUE!"}]
[0,76,null,null,null,null,null,null,null,null,false,null,"","",{"$error":"#VALUE!"}]
[0,77,null,null,null,null,null,null,null,null,false,null,"","",{"$error":"#VALUE!"}]
[0,78,null,null,null,null,null,null,null,null,false,null,"","",{"$error":"#VALUE!"}]
[0,79,null,null,null,null,null,null,null,null,false,null,"","",{"$error":"#VALUE!"}]
[0,80,null,null,null,null,null,null,null,null,false,null,"","",{"$error":"#VALUE!"}]
[0,81,null,null,null,null,null,null,null,null,false,null,"","",{"$error":"#VALUE!"}]
[0,82,null,null,null,null,null,null,null,null,false,null,"","",{"$error":"#VALUE!"}]
[0,83,null,null,null,null,null,null,null,null,false,null,"","",{"$error":"#VALUE!"}]
[0,84,null,null,null,null,null,null,null,null,false,null,"","",{"$error":"#VALUE!"}]
[0,85,null,null,null,null,null,null,null,null,false,null,"","",{"$error":"#VALUE!"}]
[0,86,null,null,null,null,null,null,null,null,false,null,"","",{"$error":"#VALUE!"}]
[0,87,null,null,null,null,null,null,null,null,false,null,"","",{"$error":"#VALUE!"}]
[0,88,null,null,null,null,null,null,null,null,false,null,"","",{"$error":"#VALUE!"}]
[{"$f":"IF(C97=\"\",0,1)","v":0},89,null,null,null,null,null,null,null,null,false,null,"","",{"$error":"#VALUE!"}]
[{"$f":"IF(C98=\"\",0,1)","v":0},90,null,null,null,null,null,null,null,null,false,null,"","",{"$error":"#VALUE!"}]
[0,91,null,null,null,null,null,null,null,null,false,null,"","",{"$error":"#VALUE!"}]
[0,92,null,null,null,null,null,null,null,null,false,null,"","",{"$error":"#VALUE!"}]
[0,93,null,null,null,null,null,null,null,null,false,null,"","",{"$error":"#VALUE!"}]
[0,94,null,null,null,null,null,null,null,null,false,null,"","",{"$error":"#VALUE!"}]
[0,95,null,null,null,null,null,null,null,null,false,null,"","",{"$error":"#VALUE!"}]
[0,96,null,null,null,null,null,null,null,null,false,null,"","",{"$error":"#VALUE!"}]
[0,97,null,null,null,null,null,null,null,null,false,null,"","",{"$error":"#VALUE!"}]
[0,98,null,null,null,null,null,null,null,null,false,null,"","",{"$error":"#VALUE!"}]
[0,99,null,null,null,null,null,null,null,null,false,null,"","",{"$error":"#VALUE!"}]
[0,100,null,null,null,null,null,null,null,null,false,null,"","",{"$error":"#VALUE!"}]
[{"$f":"MAX(A9:A108)","v":0},null,{"$f":"COUNTA(C9:C108)","v":0},0,0,null,0,0,0,0,null,{"$f":"SUM(L9:L108)","v":0},null,{"$f":"SUM(N9:N108)","v":0}]
[]
[null,null,"Startgeld",null,"Starter",null,"Summe",null,"Bitte überweisen Sie den Gesamtbetrag in Höhe von:",null,"Bankverbindung:\nRSC Montekali Neuhof e.V.\nIBAN: DE 43 5306 0180 0007 2227 77\nBIC:    GENODE51FUL"]
[null,null,"Erwachsene",5,{"$f":"COUNTIF($N$9:$N$108,D112)","v":0},null,{"$f":"D112*E112","v":0}]
[null,null,"Starter bis 18 Jahre",0,{"$f":"COUNTIF($N$9:$N$108,D113)","v":0},null,{"$f":"D113*E113","v":0}]
[null,null,null,null,{"$f":"SUM(E112:E113)","v":0},null,{"$f":"SUM(G112:G113)","v":0}]
[null,null,null,null,null,null,null,null,null,{"$f":"G114","v":0}]